fUST/lending_fUST_20260115
["ID","MTS","AMOUNT","RATE_DAILY","PERIOD"]
[402000600,1768456240358,-1000.0,0.00014247,2]
[402000601,1768456240369,-842.42744091,0.00014247,2]
[402000602,1768456240379,-502.24534211,0.00014247,2]
[402000603,1768456240390,-1000.0,0.00014247,2]
[402000604,1768456240400,-817.50977535,0.00014247,2]
[402000605,1768456240411,-1087.52830239,0.00014247,2]
[402000606,1768456240422,-1000.0,0.00014247,2]
[402000608,1768456240433,-1002.15537152,0.00014247,2]
[402000610,1768456240443,-1000.0,0.00014247,2]
[402000612,1768456240454,-186.53198003,0.00014247,2]
[402000614,1768456240465,-1000.0,0.00014247,2]
[402000616,1768456240475,-1000.0,0.00014247,2]
[402000618,1768456240485,-864.0,0.00014266,2]
[402000620,1768456240497,-2752.36,0.00014268,2]
[402000622,1768456240507,-100000.0,0.00014298,2]
[402000625,1768456240517,-522.04357159,0.00014368,2]
[402000627,1768456240528,-1500.0,0.00014368,2]
[402000629,1768456240539,-1500.0,0.00014368,2]
[402000631,1768456240549,-1500.0,0.00014368,2]
[402000633,1768456240560,-1500.0,0.00014368,2]
[402000635,1768456240571,-1500.0,0.00014368,2]
[402000637,1768456240581,-473.60741082,0.00014368,2]
[402000639,1768456240591,-505.25947973,0.00014368,2]
[402000642,1768456240602,-1500.0,0.00014368,2]
[402000644,1768456240612,-823.0,0.00014383,2]
[402000646,1768456240622,-250.0,0.0001441,2]
[402000648,1768456240632,-5000.0,0.0001451,2]
[402000650,1768456240643,-666.91973232,0.00014795,2]
[402000652,1768456240653,-1019.10615049,0.00014795,2]
[402000654,1768456240664,-648.13731473,0.00014795,2]
[402000656,1768456240674,-1500.0,0.00014795,2]
[402000658,1768456240685,-1500.0,0.00014795,2]
[402000660,1768456240695,-605.07188428,0.00014795,2]
[402000662,1768456240705,-201.04460068,0.00014795,2]
[402000664,1768456240715,-1500.0,0.00014795,2]
[402000666,1768456240725,-583.81618829,0.00014795,2]
[402000669,1768456240736,-1160.83132082,0.00014795,2]
[402000671,1768456240746,-1500.0,0.00014795,2]
[402000673,1768456240757,-1500.0,0.00014795,2]
[402000675,1768456240767,-418.68083582,0.00014835,2]
[402000677,1768456240777,-200.21167502,0.00014916,2]
[402000679,1768456240787,-1002.40018303,0.00014916,2]
[402000681,1768456240797,-1000.0,0.00014916,2]
[402000683,1768456240807,-1000.0,0.00014916,2]
[402000685,1768456240818,-2000.0,0.00014916,2]
[402000687,1768456240828,-2000.0,0.00014916,2]
[402000690,1768456240838,-241.0,0.00015,2]
[402000692,1768456240849,-330.0,0.00015,2]
[402000694,1768456240859,-245.343896,0.00015068,2]
[402000696,1768456240870,-2065.26822594,0.00015342,2]
[402000698,1768456240880,-2000.0,0.00015342,2]
[402000700,1768456240890,-2061.32249094,0.00015342,2]
[402000702,1768456240900,-493.74297815,0.00015342,2]
[402000705,1768456240911,-2000.0,0.00015342,2]
[402000707,1768456240921,-782.26163417,0.00015464,2]
[402000709,1768456240933,-2500.0,0.00015464,2]
[402000711,1768456240943,-1000.0,0.00015693,2]
[402000713,1768456240954,-403.96853636,0.000158,2]
[402000715,1768456240964,-403.96853636,0.000158,2]
[402000717,1768456240974,-403.96853636,0.000158,2]
[402000719,1768456240984,-1152.0,0.00015808,2]
[402000721,1768456240994,-2500.0,0.0001589,2]
[402000723,1768456241005,-2500.0,0.0001589,2]
[402000725,1768456241017,-3000.0,0.00016012,2]
[402000728,1768456241028,-500.0,0.00016438,2]
[402000730,1768456241038,-543.68262261,0.00016438,2]
[402000732,1768456241048,-500.0,0.00016438,2]
[402000734,1768456241057,-164.30818849,0.00016438,2]
[402000736,1768456241067,-3000.0,0.00016438,2]
[402000738,1768456241076,-200.0,0.00016473,2]
[402000740,1768456241085,-3503.04077884,0.0001656,2]
[402000742,1768456241094,-474.09447585,0.00016835,2]
[402000744,1768456241104,-500.0,0.00016959,2]
[402000746,1768456241113,-500.0,0.00016959,2]
[402000748,1768456241122,-500.0,0.00016959,2]
[402000751,1768456241361,-500.0,0.00016959,2]
[402000754,1768456241382,-500.0,0.00016959,2]
[402000757,1768456241397,-500.0,0.00016959,2]
[402000759,1768456241407,-500.0,0.00016959,2]
[402000761,1768456241416,-500.0,0.00016959,2]
[402000763,1768456241425,-500.0,0.00016959,2]
[402000765,1768456241435,-500.0,0.00016959,2]
[402000767,1768456241445,-500.0,0.00016959,2]
[402000769,1768456241454,-500.0,0.00016959,2]
[402000771,1768456241463,-500.0,0.00016959,2]
[402000773,1768456241473,-500.0,0.00016959,2]
[402000775,1768456241482,-500.0,0.00016959,2]
[402000777,1768456241492,-500.0,0.00016959,2]
[402000779,1768456241501,-232.06511504,0.00016959,2]
[402000781,1768456241510,-3500.0,0.00016986,2]
[402000783,1768456241520,-1000.0,0.00017262,2]
[402000785,1768456241530,-244.0,0.00017262,2]
[402000787,1768456241539,-1613.0,0.00017374,2]
[402000789,1768456241549,-2854.31079119,0.00017412,2]
[402000791,1768456241558,-245.343896,0.00018493,2]
[402000793,1768456241567,-442.56744364,0.00018603,2]
[402000795,1768456241577,-1770.26977457,0.00018603,2]
[402000797,1768456241588,-3979.1238858,0.00018603,2]
[402000800,1768456241597,-1041.66666667,0.00018766,2]
[402000802,1768456241606,-529.50811589,0.00018835,2]
[402000804,1768456241616,-1000.0,0.00018988,2]
[402000806,1768456241625,-492.0,0.00018988,2]
[402000807,1768456241634,-371.0,0.00019095,2]
[402000810,1768456241643,-845.3974,0.00019178,2]
[402000812,1768456241653,-845.3974,0.00019178,2]
[402000814,1768456241663,-648.6,0.00019178,2]
[402000816,1768456241673,-648.6,0.00019178,2]
[402000818,1768456241682,-648.6,0.00019178,2]
[402000819,1768456241692,-648.6,0.00019178,2]
[402000821,1768456241702,-648.6,0.00019178,2]
[402000823,1768456241711,-648.6,0.00019178,2]
[402000825,1768456241719,-648.6,0.00019178,2]
[402000827,1768456241728,-648.6,0.00019178,2]
[402000829,1768456241738,-648.6,0.00019178,2]
[402000832,1768456241747,-648.6,0.00019178,2]
[402000833,1768456241756,-648.6,0.00019178,2]
[402000835,1768456241765,-648.6,0.00019178,2]
[402000838,1768456241775,-648.6,0.00019178,2]
[402000840,1768456241784,-648.6,0.00019178,2]
[402000841,1768456241793,-648.6,0.00019178,2]
[402000843,1768456241802,-648.6,0.00019178,2]
[402000845,1768456241811,-648.6,0.00019178,2]
[402000847,1768456241820,-845.3974,0.00019178,2]
[402000849,1768456241828,-648.6,0.00019178,2]
[402000852,1768456241838,-648.6,0.00019178,2]
[402000854,1768456241847,-648.6,0.00019178,2]
[402000856,1768456241857,-648.6,0.00019178,2]
[402000858,1768456241866,-648.6,0.00019178,2]
[402000859,1768456241875,-648.6,0.00019178,2]
[402000862,1768456241884,-648.74161084,0.00019178,2]
[402000863,1768456241893,-845.3974,0.00019178,2]
[402000865,1768456241902,-200.0,0.00019178,2]
[402000867,1768456241911,-845.3974,0.00019178,2]
[402000869,1768456241920,-845.3974,0.00019178,2]
[402000871,1768456241929,-845.3974,0.00019178,2]
[402000873,1768456241938,-19761.47,0.000194,2]
[402000875,1768456241948,-176.45,0.000194,2]
[402000877,1768456241957,-3372.42,0.000194,2]
[402000880,1768456241966,-157.01,0.000194,2]
[402000882,1768456241975,-151.3135251,0.00019425,2]
[402000883,1768456241984,-500.0,0.00019425,2]
[402000885,1768456241993,-164.90520993,0.00019425,2]
[402000887,1768456242002,-500.0,0.00019425,2]
[402000889,1768456242011,-572.8,0.00019522,2]
[402000891,1768456242020,-618.69740254,0.00019562,2]
[402000893,1768456242029,-500.0,0.00019562,2]
[402000895,1768456242037,-250.0,0.00019699,2]
[402000897,1768456242047,-183.24618593,0.0002,2]
[402000899,1768456242055,-845.3974,0.0002,4]
[402000901,1768456242064,-200.0026,0.0002,4]
[402000903,1768456242073,-845.3974,0.0002,4]
[402000905,1768456242083,-845.3974,0.0002,4]
[402000907,1768456242092,-845.3974,0.0002,4]
[402000909,1768456242101,-845.3974,0.0002,4]
[402000911,1768456242110,-150.55313475,0.0002011,2]
[402000913,1768456242119,-572.8,0.00020487,2]
[402000915,1768456242128,-2147.0,0.00020606,2]
[402000917,1768456242137,-629.0,0.00020606,2]
[402000919,1768456242151,-1367.0,0.00020606,2]
[402000921,1768456242160,-418.0,0.00020606,2]
[402000923,1768456242169,-715.0,0.00020606,2]
[402000925,1768456242179,-584.92175592,0.00020835,2]
[402000927,1768456242188,-1000.0,0.00020887,2]
[402000929,1768456242197,-791.0,0.00020887,2]
[402000931,1768456242207,-245.89225561,0.00021205,4]
[402000933,1768456242216,-845.3974,0.00021233,7]
[402000935,1768456242224,-845.3951,0.00021233,7]
[402000937,1768456242233,-845.3974,0.00021233,7]
[402000939,1768456242242,-845.3974,0.00021233,7]
[402000941,1768456242252,-845.3974,0.00021233,7]
[402000943,1768456242261,-3000.0,0.00021402,7]
[402000945,1768456242270,-572.8,0.00021452,2]
[402000947,1768456242280,-176.45,0.000216,2]
[402000949,1768456242289,-3372.42,0.000216,2]
[402000951,1768456242299,-19761.47,0.000217,2]
[402000953,1768456242307,-2107.08755092,0.00021818,2]
[402000955,1768456242316,-200.0,0.00021918,7]
[402000957,1768456242325,-176.378328,0.00021918,7]
[402000959,1768456242335,-245.343896,0.00021918,2]
[402000961,1768456242344,-2277.39,0.00022,7]
[402000963,1768456242353,-634.694556,0.00022,30]
[402000965,1768456242362,-223.858264,0.00022,30]
[402000967,1768456242371,-1244.753468,0.00022,30]
[402000969,1768456242381,-163.0,0.00022,2]
[402000971,1768456242390,-3313.479325,0.00022,30]
[402000973,1768456242399,-2107.0875509,0.00022047,2]
[402000975,1768456242409,-2284.793431,0.0002205,30]
[402000977,1768456242418,-537.259831,0.0002205,30]
[402000979,1768456242427,-1417.0,0.00022059,2]
[402000981,1768456242437,-1957.856,0.00022077,2]
[402000983,1768456242446,-250.0,0.00022077,2]
[402000985,1768456242455,-151.0,0.00022077,2]
[402000987,1768456242464,-250.0,0.00022077,2]
[402000989,1768456242473,-151.0,0.00022077,2]
[402000991,1768456242483,-461.67526834,0.00022077,2]
[402000993,1768456242492,-151.0,0.00022077,2]
[402000995,1768456242501,-250.0,0.00022077,2]
[402000996,1768456242511,-151.0,0.00022077,2]
[402000998,1768456242520,-30000.0,0.00022077,2]
[402001000,1768456242529,-151.0,0.00022077,2]
[402001002,1768456242538,-151.0,0.00022077,2]
[402001004,1768456242547,-151.0,0.00022077,2]
[402001007,1768456242557,-151.0,0.00022077,2]
[402001008,1768456242566,-151.0,0.00022077,2]
[402001010,1768456242575,-500.0,0.00022077,2]
[402001013,1768456242584,-151.0,0.00022077,2]
[402001015,1768456242594,-151.0,0.00022077,2]
[402001017,1768456242603,-151.0,0.00022077,2]
[402001019,1768456242612,-151.0,0.00022077,2]
[402001021,1768456242621,-151.0,0.00022077,2]
[402001023,1768456242630,-500.0,0.00022077,2]
[402001025,1768456242639,-151.0,0.00022077,2]
[402001027,1768456242649,-250.0,0.00022077,2]
[402001029,1768456242658,-151.0,0.00022077,2]
[402001031,1768456242667,-500.0,0.00022077,2]
[402001033,1768456242676,-151.0,0.00022077,2]
[402001035,1768456242685,-250.0,0.00022077,2]
[402001037,1768456242694,-151.0,0.00022077,2]
[402001039,1768456242703,-500.0,0.00022077,2]
[402001041,1768456242712,-151.0,0.00022077,2]
[402001043,1768456242721,-250.0,0.00022077,2]
[402001045,1768456242730,-151.0,0.00022077,2]
[402001047,1768456242739,-500.0,0.00022077,2]
[402001049,1768456242748,-151.0,0.00022077,2]
[402001051,1768456242756,-273.53456012,0.00022077,2]
[402001053,1768456242765,-151.0,0.00022077,2]
[402001055,1768456242774,-500.0,0.00022077,2]
[402001057,1768456242782,-151.0,0.00022077,2]
[402001059,1768456242791,-151.0,0.00022077,2]
[402001061,1768456242799,-500.0,0.00022077,2]
[402001063,1768456242808,-151.0,0.00022077,2]
[402001065,1768456242817,-151.0,0.00022077,2]
[402001067,1768456242826,-500.0,0.00022077,2]
[402001069,1768456242835,-151.0,0.00022077,2]
[402001070,1768456242844,-151.0,0.00022077,2]
[402001072,1768456242853,-500.0,0.00022077,2]
[402001074,1768456242862,-151.0,0.00022077,2]
[402001076,1768456242871,-151.0,0.00022077,2]
[402001078,1768456242879,-500.0,0.00022077,2]
[402001080,1768456242888,-250.0,0.00022077,2]
[402001082,1768456242898,-151.0,0.00022077,2]
[402001084,1768456242907,-500.0,0.00022077,2]
[402001087,1768456242916,-250.0,0.00022077,2]
[402001089,1768456242925,-151.0,0.00022077,2]
[402001090,1768456242934,-250.0,0.00022077,2]
[402001092,1768456242943,-500.0,0.00022077,2]
[402001095,1768456242952,-151.0,0.00022077,2]
[402001096,1768456242961,-250.0,0.00022077,2]
[402001098,1768456242972,-500.0,0.00022077,2]
[402001100,1768456242982,-151.0,0.00022077,2]
[402001103,1768456242991,-250.0,0.00022077,2]
[402001104,1768456243000,-2230.315306,0.00022077,2]
[402001108,1768456243009,-151.0,0.00022077,2]
[402001111,1768456243018,-500.0,0.00022077,2]
[402001113,1768456243027,-250.0,0.00022077,2]
[402001115,1768456243036,-151.0,0.00022077,2]
[402001117,1768456243045,-151.0,0.00022077,2]
[402001119,1768456243054,-500.0,0.00022077,2]
[402001122,1768456243063,-151.0,0.00022077,2]
[402001124,1768456243073,-250.0,0.00022077,2]
[402001126,1768456243082,-151.0,0.00022077,2]
[402001128,1768456243091,-500.0,0.00022077,2]
[402001130,1768456243100,-168.3888056,0.00022077,2]
[402001132,1768456243109,-323.29083411,0.00022077,2]
[402001134,1768456243118,-151.0,0.00022077,2]
[402001136,1768456243127,-500.0,0.00022077,2]
[402001138,1768456243136,-174.61919141,0.00022077,2]
[402001140,1768456243149,-151.0,0.00022077,2]
[402001142,1768456243158,-181.08010149,0.00022077,2]
[402001144,1768456243167,-151.0,0.00022077,2]
[402001146,1768456243176,-187.78006525,0.00022077,2]
[402001148,1768456243186,-151.0,0.00022077,2]
[402001150,1768456243195,-194.72792766,0.00022077,2]
[402001152,1768456243205,-151.0,0.00022077,2]
[402001154,1768456243215,-201.93286099,0.00022077,2]
[402001156,1768456243225,-250.0,0.00022077,2]
[402001158,1768456243234,-151.0,0.00022077,2]
[402001160,1768456243243,-209.40437684,0.00022077,2]
[402001162,1768456243252,-151.0,0.00022077,2]
[402001164,1768456243261,-250.0,0.00022077,2]
[402001166,1768456243270,-217.15233878,0.00022077,2]
[402001168,1768456243279,-151.0,0.00022077,2]
[402001170,1768456243288,-250.0,0.00022077,2]
[402001172,1768456243297,-225.18697532,0.00022077,2]
[402001174,1768456243307,-151.0,0.00022077,2]
[402001176,1768456243315,-250.0,0.00022077,2]
[402001178,1768456243324,-233.51889341,0.00022077,2]
[402001180,1768456243334,-151.0,0.00022077,2]
[402001182,1768456243343,-151.0,0.00022077,2]
[402001184,1768456243352,-250.0,0.00022077,2]
[402001186,1768456243361,-242.15909246,0.00022077,2]
[402001188,1768456243370,-151.0,0.00022077,2]
[402001190,1768456243379,-250.0,0.00022077,2]
[402001192,1768456243388,-151.0,0.00022077,2]
[402001194,1768456243397,-251.11897888,0.00022077,2]
[402001196,1768456243406,-151.0,0.00022077,2]
[402001198,1768456243415,-250.0,0.00022077,2]
[402001200,1768456243424,-198.1626915,0.00022077,2]
[402001201,1768456243433,-260.4103811,0.00022077,2]
[402001203,1768456243442,-250.0,0.00022077,2]
[402001205,1768456243453,-270.0455652,0.00022077,2]
[402001207,1768456243462,-326.88557873,0.00022077,2]
[402001209,1768456243471,-280.03725112,0.00022077,2]
[402001211,1768456243480,-290.39862941,0.00022077,2]
[402001213,1768456243489,-301.1433787,0.00022077,2]
[402001215,1768456243498,-151.0,0.00022077,2]
[402001217,1768456243507,-151.0,0.00022077,2]
[402001219,1768456243516,-157.01,0.000221,7]
[402001221,1768456243525,-423.307989,0.000221,30]
[402001223,1768456243534,-158.673639,0.000221,30]
[402001225,1768456243544,-2030.296672,0.00022132,2]
[402001227,1768456243553,-2105.41764886,0.00022187,2]
[402001229,1768456243562,-163.0,0.00022192,7]
[402001231,1768456243571,-2183.31810187,0.00022242,2]
[402001233,1768456243580,-2107.0875509,0.00022277,2]
[402001235,1768456243589,-1815.03266282,0.00022297,2]
[402001237,1768456243599,-192.0,0.00022301,7]
[402001239,1768456243608,-1417.0,0.00022377,2]
[402001241,1768456243618,-180.22889069,0.00022414,2]
[402001243,1768456243627,-572.8,0.00022417,2]
[402001245,1768456243637,-300.0,0.00022466,2]
[402001247,1768456243646,-200.0,0.00022466,2]
[402001250,1768456243656,-3000.0,0.00022498,7]
[402001252,1768456243665,-1343.149576,0.00022498,30]
[402001254,1768456243675,-2107.0875509,0.00022506,2]
[402001256,1768456243684,-343.0,0.00022595,2]
[402001258,1768456243693,-167.84,0.000226,7]
[402001259,1768456243702,-275.55471384,0.00022625,2]
[402001261,1768456243712,-151.0,0.00022625,2]
[402001264,1768456243721,-151.0,0.00022625,2]
[402001266,1768456243731,-151.0,0.00022625,2]
[402001267,1768456243739,-151.0,0.00022625,2]
[402001270,1768456243749,-151.0,0.00022625,2]
[402001272,1768456243758,-194.573402,0.00022625,2]
[402001274,1768456243768,-194.573402,0.00022625,2]
[402001275,1768456243777,-194.573402,0.00022625,2]
[402001277,1768456243786,-151.0,0.00022625,2]
[402001279,1768456243795,-151.0,0.00022625,2]
[402001282,1768456243805,-151.0,0.00022625,2]
[402001284,1768456243815,-194.573402,0.00022625,2]
[402001285,1768456243824,-466.939068,0.00022625,2]
[402001287,1768456243834,-466.939068,0.00022625,2]
[402001289,1768456243843,-466.939068,0.00022625,2]
[402001292,1768456243853,-466.939068,0.00022625,2]
[402001294,1768456243863,-151.0,0.00022625,2]
[402001296,1768456243872,-241.138234,0.00022625,2]
[402001298,1768456243881,-213.542319,0.00022625,2]
[402001300,1768456243890,-213.542319,0.00022625,2]
[402001303,1768456243899,-213.542319,0.00022625,2]
[402001305,1768456243909,-213.542319,0.00022625,2]
[402001307,1768456243918,-475.009948,0.00022625,2]
[402001309,1768456243927,-475.009948,0.00022625,2]
[402001311,1768456243936,-475.009948,0.00022625,2]
[402001313,1768456243946,-475.009948,0.00022625,2]
[402001315,1768456243955,-478.75725327,0.00022625,2]
[402001318,1768456243965,-31110.0,0.00022625,2]
[402001319,1768456243974,-2312.83697232,0.00022625,2]
[402001321,1768456243984,-258.9860714,0.00022661,2]
[402001324,1768456243994,-203.98331718,0.00022704,2]
[402001326,1768456244003,-18818.3434003,0.00022705,2]
[402001327,1768456244013,-88457.7959259,0.00022705,2]
[402001329,1768456244022,-638.3773265,0.00022705,2]
[402001332,1768456244031,-151.0,0.00022705,2]
[402001333,1768456244040,-151.0,0.00022705,2]
[402001335,1768456244050,-152.797092,0.00022705,2]
[402001338,1768456244060,-151.0,0.00022705,2]
[402001340,1768456244069,-224.172274,0.00022705,2]
[402001342,1768456244079,-179.354254,0.00022705,2]
[402001344,1768456244088,-179.354254,0.00022705,2]
[402001346,1768456244098,-172.511817,0.00022705,2]
[402001347,1768456244107,-179.354254,0.00022705,2]
[402001348,1768456244116,-151.0,0.00022705,2]
[402001349,1768456244125,-179.354254,0.00022705,2]
[402001350,1768456244135,-288.636668,0.00022705,2]
[402001351,1768456244151,-153.051658,0.00022705,2]
[402001352,1768456244162,-157.209828,0.00022705,2]
[402001353,1768456244171,-151.0,0.00022705,2]
[402001354,1768456244181,-151.0,0.00022705,2]
[402001355,1768456244191,-151.0,0.00022705,2]
[402001356,1768456244200,-151.0,0.00022705,2]
[402001357,1768456244209,-267.70555,0.00022705,2]
[402001358,1768456244219,-151.0,0.00022705,2]
[402001359,1768456244228,-161.615592,0.00022705,2]
[402001360,1768456244237,-202.845237,0.00022705,2]
[402001361,1768456244246,-202.845237,0.00022705,2]
[402001362,1768456244255,-202.845237,0.00022705,2]
[402001363,1768456244264,-202.845237,0.00022705,2]
[402001364,1768456244272,-1424.748661,0.00022705,2]
[402001366,1768456244281,-1424.748661,0.00022705,2]
[402001367,1768456244291,-1424.748661,0.00022705,2]
[402001369,1768456244300,-151.082879,0.00022705,2]
[402001371,1768456244309,-1424.748661,0.00022705,2]
[402001374,1768456244320,-151.0,0.00022705,2]
[402001375,1768456244329,-151.0,0.00022705,2]
[402001378,1768456244339,-151.0,0.00022705,2]
[402001379,1768456244348,-151.000001,0.00022705,2]
[402001382,1768456244358,-154.245754,0.00022705,2]
[402001384,1768456244367,-154.245754,0.00022705,2]
[402001386,1768456244376,-154.245754,0.00022705,2]
[402001387,1768456244385,-154.245754,0.00022705,2]
[402001390,1768456244394,-151.0,0.00022705,2]
[402001392,1768456244404,-151.0,0.00022705,2]
[402001393,1768456244413,-151.0,0.00022705,2]
[402001396,1768456244423,-151.0,0.00022705,2]
[402001397,1768456244432,-151.0,0.00022705,2]
[402001399,1768456244442,-151.0,0.00022705,2]
[402001401,1768456244451,-252.547124,0.00022705,2]
[402001403,1768456244460,-427.21115,0.00022705,2]
[402001405,1768456244470,-151.0,0.00022705,2]
[402001423,1768456244622,-427.21115,0.00022705,2]
[402001425,1768456244634,-165.324728,0.00022705,2]
[402001427,1768456244643,-427.21115,0.00022705,2]
[402001430,1768456244653,-165.324728,0.00022705,2]
[402001432,1768456244663,-151.0,0.00022705,2]
[402001434,1768456244673,-427.21115,0.00022705,2]
[402001436,1768456244682,-165.324728,0.00022705,2]
[402001437,1768456244692,-165.324728,0.00022705,2]
[402001440,1768456244701,-151.0,0.00022705,2]
[402001442,1768456244711,-151.0,0.00022705,2]
[402001443,1768456244720,-151.0,0.00022705,2]
[402001446,1768456244730,-281.005551,0.00022705,2]
[402001448,1768456244739,-339.343846,0.00022705,2]
[402001450,1768456244748,-339.343846,0.00022705,2]
[402001452,1768456244758,-339.343846,0.00022705,2]
[402001454,1768456244767,-339.343846,0.00022705,2]
[402001455,1768456244777,-295.806985,0.00022705,2]
[402001458,1768456244786,-295.806985,0.00022705,2]
[402001460,1768456244796,-176.671166,0.00022705,2]
[402001462,1768456244806,-295.806985,0.00022705,2]
[402001464,1768456244815,-295.806985,0.00022705,2]
[402001466,1768456244824,-224.150366,0.00022705,2]
[402001468,1768456244834,-151.0,0.00022705,2]
[402001470,1768456244843,-210.355603,0.00022705,2]
[402001472,1768456244852,-151.0,0.00022705,2]
[402001473,1768456244862,-707.45049,0.00022705,2]
[402001476,1768456244872,-151.0,0.00022705,2]
[402001478,1768456244881,-707.45049,0.00022705,2]
[402001480,1768456244891,-151.0,0.00022705,2]
[402001482,1768456244900,-707.45049,0.00022705,2]
[402001483,1768456244910,-707.45049,0.00022705,2]
[402001486,1768456244919,-165.855245,0.00022705,2]
[402001488,1768456244928,-165.855245,0.00022705,2]
[402001490,1768456244938,-165.855245,0.00022705,2]
[402001491,1768456244947,-165.855245,0.00022705,2]
[402001493,1768456244956,-228.613704,0.00022705,2]
[402001495,1768456244965,-151.0,0.00022705,2]
[402001497,1768456244975,-151.0,0.00022705,2]
[402001500,1768456244985,-288.58596,0.00022705,2]
[402001501,1768456244994,-649.149683,0.00022705,2]
[402001504,1768456245004,-649.149683,0.00022705,2]
[402001505,1768456245014,-649.149683,0.00022705,2]
[402001508,1768456245024,-649.149683,0.00022705,2]
[402001510,1768456245034,-151.0,0.00022705,2]
[402001511,1768456245043,-151.0,0.00022705,2]
[402001514,1768456245052,-151.0,0.00022705,2]
[402001516,1768456245062,-1201.527246,0.00022705,2]
[402001518,1768456245072,-1201.527246,0.00022705,2]
[402001520,1768456245081,-1201.527246,0.00022705,2]
[402001522,1768456245091,-1201.527246,0.00022705,2]
[402001524,1768456245100,-202.377532,0.00022705,2]
[402001526,1768456245109,-151.0,0.00022705,2]
[402001528,1768456245118,-202.377532,0.00022705,2]
[402001530,1768456245127,-202.377532,0.00022705,2]
[402001532,1768456245136,-151.0,0.00022705,2]
[402001534,1768456245148,-202.377532,0.00022705,2]
[402001536,1768456245157,-151.0,0.00022705,2]
[402001538,1768456245166,-151.0,0.00022705,2]
[402001540,1768456245176,-153.36815,0.00022705,2]
[402001542,1768456245185,-151.0,0.00022705,2]
[402001544,1768456245194,-151.112222,0.00022705,2]
[402001546,1768456245203,-151.0,0.00022705,2]
[402001548,1768456245214,-151.0,0.00022705,2]
[402001550,1768456245224,-151.0,0.00022705,2]
[402001552,1768456245233,-151.0,0.00022705,2]
[402001554,1768456245242,-152.929752,0.00022705,2]
[402001556,1768456245251,-151.0,0.00022705,2]
[402001558,1768456245260,-220.029653,0.00022705,2]
[402001560,1768456245269,-24829.1485416,0.00022727,2]
[402001562,1768456245278,-2107.0875509,0.00022735,2]
[402001564,1768456245288,-160.0,0.00022736,3]
[402001566,1768456245298,-5000.0,0.00022768,2]
[402001568,1768456245307,-250.0,0.000228,10]
[402001570,1768456245317,-2213137.02941332,0.000228,2]
[402001572,1768456245326,-640.33539595,0.00022835,2]
[402001574,1768456245335,-488.88796601,0.0002284,2]
[402001576,1768456245345,-1953.59631217,0.0002284,2]
[402001578,1768456245355,-404.0,0.00022851,2]
[402001580,1768456245364,-1215.0,0.00022861,2]
[402001582,1768456245373,-176.45,0.000229,7]
[402001584,1768456245383,-3372.42,0.000229,14]
[402001586,1768456245392,-5711.983577,0.000229,30]
[402001588,1768456245401,-250.0,0.000229,10]
[402001590,1768456245410,-1215.0,0.00022918,2]
[402001592,1768456245419,-1215.0,0.00022925,2]
[402001594,1768456245428,-1215.0,0.00022971,2]
[402001596,1768456245438,-1000.0,0.00022976,10]
[402001598,1768456245448,-1000.0,0.00022976,10]
[402001600,1768456245457,-2277.39,0.00023,7]
[402001602,1768456245467,-3357.873942,0.00023,30]
[402001604,1768456245476,-250.0,0.00023,10]